fUST/lending_fUST_20250802
["ID","MTS","AMOUNT","RATE_DAILY","PERIOD"]
[376843743,1754137834730,-500.0,0.00024873,2]
[376843744,1754137834739,-500.0,0.00024873,2]
[376843745,1754137834748,-500.0,0.00024873,2]
[376843746,1754137834757,-500.0,0.00024873,2]
[376843747,1754137834768,-157.75138732,0.00024873,2]
[376843748,1754137834777,-500.0,0.00024873,2]
[376843749,1754137834786,-500.0,0.00024873,2]
[376843750,1754137834795,-448.77994014,0.00024873,2]
[376843751,1754137834804,-500.0,0.00024873,2]
[376843752,1754137834814,-503.77605341,0.00024873,2]
[376843753,1754137834823,-500.0,0.00024873,2]
[376843754,1754137834832,-500.0,0.00024873,2]
[376843755,1754137834840,-515.521737,0.00024873,2]
[376843756,1754137834850,-500.0,0.00024873,2]
[376843757,1754137834861,-512.91276864,0.00024873,2]
[376843758,1754137834870,-500.0,0.00024873,2]
[376843759,1754137834880,-500.0,0.00024873,2]
[376843760,1754137834889,-500.0,0.00024873,2]
[376843761,1754137834898,-500.0,0.00024873,2]
[376843762,1754137834907,-500.0,0.00024873,2]
[376843763,1754137834916,-500.0,0.00024873,2]
[376843764,1754137834929,-491.92799252,0.00024899,2]
[376843765,1754137834938,-194.34959476,0.00024899,2]
[376843766,1754137834947,-284673.32005,0.000249,2]
[376843767,1754137834957,-1432.26644297,0.00024912,2]
[376843768,1754137834966,-170.58,0.00024964,7]
[376843769,1754137834976,-500.0,0.00024973,2]
[376843770,1754137834985,-500.0,0.00024973,2]
[376843771,1754137834995,-500.88405749,0.00024973,2]
[376843772,1754137835005,-500.59710166,0.00024973,2]
[376843773,1754137835014,-502.10077524,0.00024973,2]
[376843774,1754137835023,-500.0,0.00024973,2]
[376843775,1754137835032,-314.78528291,0.00024973,2]
[376843776,1754137835041,-500.0,0.00024973,2]
[376843777,1754137835051,-500.0,0.00024973,2]
[376843778,1754137835060,-500.0,0.00024973,2]
[376843779,1754137835069,-500.0,0.00024973,2]
[376843780,1754137835079,-500.0,0.00024973,2]
[376843781,1754137835088,-500.0,0.00024973,2]
[376843782,1754137835098,-502.02636526,0.00024973,2]
[376843783,1754137835108,-500.0,0.00024973,2]
[376843784,1754137835117,-501.71365784,0.00024973,2]
[376843785,1754137835127,-503.79266212,0.00024973,2]
[376843786,1754137835136,-502.66652851,0.00024973,2]
[376843787,1754137835145,-1127.29016961,0.00024982,2]
[376843788,1754137835153,-200.0,0.00024988,15]
[376843789,1754137835163,-200.0,0.00024988,15]
[376843790,1754137835173,-200.0,0.00024988,15]
[376843791,1754137835182,-200.0,0.00024988,15]
[376843792,1754137835191,-200.0,0.00024988,15]
[376843793,1754137835200,-154.08620106,0.00025,5]
[376843794,1754137835210,-160.0,0.00025,2]
[376843795,1754137835219,-170.59,0.00025064,7]
[376843796,1754137835228,-500.0,0.00025105,2]
[376843797,1754137835237,-337.0,0.00025124,2]
[376843798,1754137835246,-160.0,0.00025165,2]
[376843799,1754137835255,-312.16666667,0.00025165,2]
[376843800,1754137835264,-215.0795835,0.00025165,2]
[376843801,1754137835274,-160.0,0.00025165,2]
[376843802,1754137835283,-216.27517063,0.00025165,2]
[376843803,1754137835292,-460.86285458,0.00025165,2]
[376843804,1754137835302,-231.57249719,0.00025165,2]
[376843805,1754137835311,-160.0,0.00025165,2]
[376843806,1754137835321,-981.99744268,0.00025242,2]
[376843807,1754137835330,-433.0,0.00025357,2]
[376843808,1754137835339,-500.0,0.00025379,2]
[376843809,1754137835348,-1000.0,0.00025421,2]
[376843810,1754137835358,-673.84412601,0.00025421,2]
[376843811,1754137835367,-258.61067344,0.00025421,2]
[376843812,1754137835376,-646.36163113,0.00025421,2]
[376843813,1754137835385,-176.93292261,0.00025421,2]
[376843814,1754137835395,-364.95972321,0.00025421,2]
[376843815,1754137835405,-502.16496801,0.00025421,2]
[376843816,1754137835414,-1000.0,0.00025421,2]
[376843817,1754137835423,-1000.0,0.00025421,2]
[376843818,1754137835432,-1000.0,0.00025421,2]
[376843819,1754137835442,-1002.23515975,0.00025421,2]
[376843820,1754137835452,-294.31185376,0.00025421,2]
[376843821,1754137835461,-1000.0,0.00025421,2]
[376843822,1754137835471,-1076.96516493,0.00025421,2]
[376843823,1754137835480,-1000.0,0.00025421,2]
[376843824,1754137835491,-1000.0,0.00025421,2]
[376843825,1754137835500,-503.28221012,0.00025421,2]
[376843826,1754137835625,-1000.0,0.00025421,2]
[376843827,1754137835635,-331.48699066,0.00025421,2]
[376843828,1754137835645,-1000.0,0.00025421,2]
[376843829,1754137835654,-1000.0,0.00025421,2]
[376843830,1754137835664,-1000.0,0.00025421,2]
[376843831,1754137835673,-500.98550011,0.00025421,2]
[376843832,1754137835682,-1000.0,0.00025421,2]
[376843833,1754137835692,-1000.0,0.00025421,2]
[376843834,1754137835701,-704.9754078,0.00025421,2]
[376843835,1754137835710,-1000.0,0.00025421,2]
[376843836,1754137835720,-1000.0,0.00025421,2]
[376843837,1754137835729,-421.54054792,0.00025421,2]
[376843838,1754137835738,-204.79259975,0.00025421,2]
[376843839,1754137835747,-422.07,0.00025504,2]
[376843840,1754137835756,-504.9755767,0.00025521,2]
[376843841,1754137835765,-519.33640727,0.00025521,2]
[376843842,1754137835774,-503.38529828,0.00025521,2]
[376843843,1754137835785,-1000.0,0.00025521,2]
[376843844,1754137835795,-1000.0,0.00025521,2]
[376843845,1754137835804,-913.54739873,0.00025524,2]
[376843846,1754137835814,-260.0,0.00025548,2]
[376843847,1754137835823,-500.0,0.00025653,2]
[376843848,1754137835832,-981.99744268,0.00025744,2]
[376843849,1754137835842,-6107.56152121,0.00025744,2]
[376843850,1754137835851,-500.0,0.0002575,2]
[376843851,1754137835862,-500.0,0.0002575,2]
[376843852,1754137835871,-635.0,0.00025811,2]
[376843853,1754137835881,-407.0,0.00025811,2]
[376843854,1754137835890,-2147.0,0.00025811,2]
[376843855,1754137835900,-382.52835953,0.00025927,2]
[376843856,1754137835910,-504.88097113,0.00025968,2]
[376843857,1754137835919,-500.0,0.00025968,2]
[376843858,1754137835928,-1500.0,0.00025968,2]
[376843859,1754137835938,-500.0,0.00025968,2]
[376843860,1754137835947,-594.6179679,0.00025968,2]
[376843861,1754137835956,-500.0,0.00025968,2]
[376843862,1754137835966,-500.0,0.00025968,2]
[376843863,1754137835976,-500.0,0.00025968,2]
[376843864,1754137835985,-506.97805857,0.00025968,2]
[376843865,1754137835995,-1500.0,0.00025968,2]
[376843866,1754137836004,-500.0,0.00025968,2]
[376843867,1754137836013,-500.0,0.00025968,2]
[376843868,1754137836022,-500.0,0.00025968,2]
[376843869,1754137836031,-702.2671018,0.00025986,2]
[376843870,1754137836040,-1500.0,0.00026068,2]
[376843871,1754137836050,-360.0,0.00026096,2]
[376843872,1754137836059,-276.4,0.000261,2]
[376843873,1754137836068,-9761.06,0.000262,4]
[376843874,1754137836078,-981.99744268,0.00026247,2]
[376843875,1754137836087,-486.99160467,0.00026298,2]
[376843876,1754137836097,-151.0,0.000264,18]
[376843877,1754137836106,-420.0,0.000264,2]
[376843878,1754137836117,-288.0,0.000264,2]
[376843879,1754137836126,-2000.0,0.00026516,2]
[376843880,1754137836136,-2008.11239632,0.00026516,2]
[376843881,1754137836145,-1680.0,0.0002652,2]
[376843882,1754137836155,-228.50128512,0.00026587,2]
[376843883,1754137836165,-151.0,0.000266,12]
[376843884,1754137836174,-151.0,0.000266,12]
[376843885,1754137836184,-2000.0,0.00026616,2]
[376843886,1754137836194,-460.0,0.00026644,2]
[376843887,1754137836203,-151.0,0.000267,14]
[376843888,1754137836212,-150.0,0.00026748,2]
[376843889,1754137836222,-981.99744268,0.00026749,2]
[376843890,1754137836232,-6107.56152121,0.00026749,2]
[376843891,1754137836242,-3396.69557826,0.000268,7]
[376843892,1754137836252,-155.349077,0.00026843,2]
[376843893,1754137836261,-1646.58406132,0.00026849,2]
[376843894,1754137836271,-460.0,0.00026849,10]
[376843895,1754137836280,-460.0,0.00026849,10]
[376843896,1754137836289,-461.46562198,0.00026849,10]
[376843897,1754137836299,-460.0,0.00026849,10]
[376843898,1754137836308,-460.0,0.00026849,10]
[376843899,1754137836318,-460.0,0.00026849,10]
[376843900,1754137836327,-464.59360669,0.00026849,10]
[376843901,1754137836336,-460.0,0.00026849,10]
[376843902,1754137836346,-460.0,0.00026849,10]
[376843903,1754137836355,-460.0,0.00026849,10]
[376843904,1754137836365,-460.0,0.00026849,10]
[376843905,1754137836375,-460.0,0.00026849,10]
[376843906,1754137836385,-154.66497834,0.00026849,10]
[376843907,1754137836394,-460.0,0.00026849,10]
[376843908,1754137836404,-460.0,0.00026849,10]
[376843909,1754137836413,-460.0,0.00026849,10]
[376843910,1754137836423,-281.8737861,0.00026849,10]
[376843911,1754137836432,-460.0,0.00026849,10]
[376843912,1754137836442,-460.0,0.00026849,10]
[376843913,1754137836451,-460.0,0.00026849,10]
[376843914,1754137836461,-460.0,0.00026849,10]
[376843915,1754137836471,-460.0,0.00026849,10]
[376843916,1754137836481,-460.0,0.00026849,10]
[376843917,1754137836491,-460.0,0.00026849,10]
[376843918,1754137836500,-460.0,0.00026849,10]
[376843919,1754137836509,-460.0,0.00026849,10]
[376843920,1754137836519,-416.18455574,0.00026849,10]
[376843921,1754137836528,-460.0,0.00026849,10]
[376843922,1754137836538,-460.0,0.00026849,10]
[376843923,1754137836547,-460.0,0.00026849,10]
[376843924,1754137836556,-460.0,0.00026849,10]
[376843925,1754137836565,-460.0,0.00026849,10]
[376843926,1754137836574,-460.0,0.00026849,10]
[376843927,1754137836583,-460.0,0.00026849,10]
[376843928,1754137836592,-460.0,0.00026849,10]
[376843929,1754137836602,-460.0,0.00026849,10]
[376843930,1754137836613,-460.0,0.00026849,10]
[376843931,1754137836623,-460.0,0.00026849,10]
[376843932,1754137836632,-460.0,0.00026849,10]
[376843933,1754137836642,-460.0,0.00026849,10]
[376843934,1754137836651,-460.0,0.00026849,10]
[376843935,1754137836660,-460.0,0.00026849,10]
[376843936,1754137836670,-460.0,0.00026849,10]
[376843937,1754137836679,-460.0,0.00026849,10]
[376843938,1754137836688,-460.0,0.00026849,10]
[376843939,1754137836697,-460.0,0.00026849,10]
[376843940,1754137836706,-460.0,0.00026849,10]
[376843941,1754137836716,-460.0,0.00026849,10]
[376843942,1754137836725,-460.0,0.00026849,10]
[376843943,1754137836734,-460.0,0.00026849,10]
[376843944,1754137836743,-460.0,0.00026849,10]
[376843945,1754137836752,-460.0,0.00026849,10]
[376843946,1754137836762,-460.0,0.00026849,10]
[376843947,1754137836774,-502.26,0.00026849,10]
[376843948,1754137836783,-460.0,0.00026849,10]
[376843949,1754137836793,-460.0,0.00026849,10]
[376843950,1754137836803,-460.0,0.00026849,10]
[376843951,1754137836813,-460.0,0.00026849,10]
[376843952,1754137836822,-460.0,0.00026849,10]
[376843953,1754137836833,-460.0,0.00026849,10]
[376843954,1754137836843,-460.0,0.00026849,10]
[376843955,1754137836853,-460.0,0.00026849,10]
[376843956,1754137836863,-460.0,0.00026849,10]
[376843957,1754137836872,-460.52026609,0.00026849,10]
[376843958,1754137836882,-155.55858491,0.00026849,10]
[376843959,1754137836890,-460.0,0.00026849,10]
[376843960,1754137836899,-460.0,0.00026849,10]
[376843961,1754137836909,-460.0,0.00026849,10]
[376843962,1754137836918,-460.0,0.00026849,10]
[376843963,1754137836926,-460.0,0.00026849,10]
[376843964,1754137836935,-460.0,0.00026849,10]
[376843965,1754137836945,-480.0,0.00026849,10]
[376843966,1754137836954,-460.0,0.00026849,10]
[376843967,1754137836963,-223.81987607,0.00026849,10]
[376843968,1754137836973,-461.67483268,0.00026849,10]
[376843969,1754137836982,-460.0,0.00026849,10]
[376843970,1754137836991,-460.0,0.00026849,10]
[376843971,1754137837000,-460.0,0.00026849,10]
[376843972,1754137837009,-460.0,0.00026849,10]
[376843973,1754137837019,-460.0,0.00026849,10]
[376843974,1754137837028,-460.0,0.00026849,10]
[376843975,1754137837037,-460.0,0.00026849,10]
[376843976,1754137837046,-284.10782562,0.00026849,10]
[376843977,1754137837055,-460.0,0.00026849,10]
[376843978,1754137837064,-284.0581239,0.00026849,10]
[376843979,1754137837073,-460.0,0.00026849,10]
[376843980,1754137837082,-460.0,0.00026849,10]
[376843981,1754137837090,-460.0,0.00026849,10]
[376843982,1754137837100,-460.0,0.00026849,10]
[376843983,1754137837111,-460.0,0.00026849,10]
[376843984,1754137837120,-460.9772443,0.00026849,10]
[376843985,1754137837130,-460.0,0.00026849,10]
[376843986,1754137837139,-460.0,0.00026849,10]
[376843987,1754137837148,-460.0,0.00026849,10]
[376843988,1754137837157,-460.0,0.00026849,10]
[376843989,1754137837166,-460.0,0.00026849,10]
[376843990,1754137837175,-463.64719582,0.00026849,10]
[376843991,1754137837184,-460.0,0.00026849,10]
[376843992,1754137837193,-460.0,0.00026849,10]
[376843993,1754137837202,-460.0,0.00026849,10]
[376843994,1754137837211,-460.0,0.00026849,10]
[376843995,1754137837221,-460.0,0.00026849,10]
[376843996,1754137837230,-460.0,0.00026849,10]
[376843997,1754137837239,-460.0,0.00026849,10]
[376843998,1754137837248,-460.0,0.00026849,10]
[376843999,1754137837257,-460.0,0.00026849,10]
[376844000,1754137837268,-328.28802198,0.00026849,10]
[376844001,1754137837277,-460.0,0.00026849,10]
[376844002,1754137837286,-460.0,0.00026849,10]
[376844003,1754137837295,-460.0,0.00026849,10]
[376844004,1754137837304,-460.0,0.00026849,10]
[376844005,1754137837314,-460.0,0.00026849,10]
[376844006,1754137837323,-460.0,0.00026849,10]
[376844007,1754137837332,-460.0,0.00026849,10]
[376844008,1754137837341,-460.0,0.00026849,10]
[376844009,1754137837351,-460.0,0.00026849,10]
[376844010,1754137837362,-460.0,0.00026849,10]
[376844011,1754137837371,-460.0,0.00026849,10]
[376844012,1754137837380,-460.0,0.00026849,7]
[376844013,1754137837389,-460.0,0.00026849,10]
[376844014,1754137837398,-460.0,0.00026849,10]
[376844015,1754137837407,-460.0,0.00026849,10]
[376844016,1754137837416,-460.0,0.00026849,10]
[376844017,1754137837426,-460.0,0.00026849,10]
[376844018,1754137837436,-463.3617651,0.00026849,10]
[376844019,1754137837445,-460.0,0.00026849,10]
[376844020,1754137837455,-460.0,0.00026849,10]
[376844021,1754137837464,-460.0,0.00026849,10]
[376844022,1754137837473,-460.0,0.00026849,10]
[376844023,1754137837482,-460.0,0.00026849,10]
[376844024,1754137837492,-460.0,0.00026849,10]
[376844025,1754137837501,-460.0,0.00026849,10]
[376844026,1754137837510,-460.0,0.00026849,10]
[376844027,1754137837519,-460.0,0.00026849,10]
[376844028,1754137837528,-460.0,0.00026849,10]
[376844029,1754137837538,-460.0,0.00026849,10]
[376844030,1754137837547,-460.0,0.00026849,10]
[376844031,1754137837556,-460.0,0.00026849,10]
[376844032,1754137837566,-460.0,0.00026849,10]
[376844033,1754137837576,-461.2398904,0.00026849,10]
[376844034,1754137837586,-460.0,0.00026849,10]
[376844035,1754137837595,-460.0,0.00026849,10]
[376844036,1754137837605,-460.0,0.00026849,10]
[376844037,1754137837616,-463.49270176,0.00026849,10]
[376844038,1754137837626,-461.97685138,0.00026849,10]
[376844039,1754137837636,-460.0,0.00026849,10]
[376844044,1754137837733,-460.0,0.00026849,10]
[376844045,1754137837743,-460.0,0.00026849,10]
[376844046,1754137837753,-460.0,0.00026849,10]
[376844047,1754137837762,-460.0,0.00026849,10]
[376844048,1754137837771,-460.0,0.00026849,10]
[376844049,1754137837781,-460.0,0.00026849,10]
[376844050,1754137837791,-462.20036886,0.00026849,10]
[376844051,1754137837801,-460.0,0.00026849,10]
[376844052,1754137837811,-460.0,0.00026849,10]
[376844053,1754137837820,-460.0,0.00026849,10]
[376844054,1754137837830,-460.0,0.00026849,10]
[376844055,1754137837839,-460.0,0.00026849,10]
[376844056,1754137837848,-460.0,0.00026849,10]
[376844057,1754137837857,-460.85745237,0.00026849,10]
[376844058,1754137837871,-460.0,0.00026849,10]
[376844059,1754137837881,-460.0,0.00026849,10]
[376844060,1754137837890,-460.0,0.00026849,10]
[376844062,1754137837900,-460.0,0.00026849,10]
[376844063,1754137837909,-460.64734819,0.00026849,10]
[376844065,1754137837919,-410.14468966,0.00026849,10]
[376844066,1754137837928,-460.0,0.00026849,10]
[376844067,1754137837938,-460.0,0.00026849,10]
[376844068,1754137837947,-460.0,0.00026849,10]
[376844069,1754137837956,-460.0,0.00026849,10]
[376844071,1754137837965,-460.0,0.00026849,10]
[376844073,1754137837975,-460.0,0.00026849,10]
[376844075,1754137837985,-462.24896373,0.00026849,10]
[376844076,1754137837994,-460.0,0.00026849,10]
[376844078,1754137838003,-460.0,0.00026849,10]
[376844080,1754137838013,-462.32976446,0.00026849,10]
[376844082,1754137838022,-460.0,0.00026849,10]
[376844084,1754137838031,-460.0,0.00026849,10]
[376844086,1754137838040,-460.0,0.00026849,10]
[376844088,1754137838049,-460.0,0.00026849,10]
[376844089,1754137838058,-460.0,0.00026849,10]
[376844090,1754137838068,-460.0,0.00026849,10]
[376844091,1754137838077,-460.0,0.00026849,10]
[376844092,1754137838086,-460.0,0.00026849,10]
[376844093,1754137838094,-460.0,0.00026849,10]
[376844094,1754137838104,-460.0,0.00026849,10]
[376844095,1754137838115,-460.0,0.00026849,10]
[376844096,1754137838125,-460.0,0.00026849,10]
[376844098,1754137838135,-461.20455348,0.00026849,10]
[376844099,1754137838143,-460.0,0.00026849,7]
[376844100,1754137838153,-460.0,0.00026849,10]
[376844101,1754137838162,-460.0,0.00026849,7]
[376844102,1754137838171,-460.0,0.00026849,10]
[376844103,1754137838180,-460.0,0.00026849,10]
[376844105,1754137838189,-460.0,0.00026849,10]
[376844106,1754137838198,-460.0,0.00026849,10]
[376844107,1754137838207,-460.0,0.00026849,10]
[376844108,1754137838216,-449.80091572,0.00026849,10]
[376844109,1754137838225,-460.0,0.00026849,10]
[376844110,1754137838234,-460.0,0.00026849,10]
[376844112,1754137838244,-460.0,0.00026849,10]
[376844113,1754137838253,-460.0,0.00026849,10]
[376844115,1754137838262,-528.24,0.00026849,10]
[376844116,1754137838271,-460.0,0.00026849,10]
[376844117,1754137838280,-460.0,0.00026849,10]
[376844118,1754137838289,-460.0,0.00026849,10]
[376844119,1754137838299,-468.64712362,0.00026849,10]
[376844120,1754137838308,-460.0,0.00026849,10]
[376844121,1754137838317,-460.0,0.00026849,10]
[376844122,1754137838327,-460.0,0.00026849,10]
[376844123,1754137838336,-460.0,0.00026849,10]
[376844124,1754137838346,-460.0,0.00026849,10]
[376844125,1754137838354,-461.76438407,0.00026849,10]
[376844126,1754137838364,-460.0,0.00026849,10]
[376844127,1754137838373,-460.0,0.00026849,10]
[376844128,1754137838382,-460.0,0.00026849,10]
[376844129,1754137838391,-461.81284186,0.00026849,10]
[376844130,1754137838401,-460.0,0.00026849,10]
[376844131,1754137838410,-460.0,0.00026849,10]
[376844132,1754137838419,-461.53571356,0.00026849,10]
[376844133,1754137838429,-460.0,0.00026849,10]
[376844134,1754137838439,-460.0,0.00026849,3]
[376844135,1754137838448,-460.0,0.00026849,3]
[376844136,1754137838457,-460.0,0.00026849,10]
[376844137,1754137838467,-460.0,0.00026849,10]
[376844138,1754137838476,-442.67509529,0.00026849,10]
[376844139,1754137838486,-460.0,0.00026849,10]
[376844140,1754137838495,-460.0,0.00026849,10]
[376844141,1754137838504,-460.48458854,0.00026849,10]
[376844142,1754137838514,-460.0,0.00026849,10]
[376844143,1754137838523,-460.0,0.00026849,10]
[376844144,1754137838532,-460.0,0.00026849,10]
[376844145,1754137838542,-460.0,0.00026849,10]
[376844146,1754137838551,-460.0,0.00026849,10]
[376844147,1754137838560,-460.0,0.00026849,10]
[376844148,1754137838569,-460.0,0.00026849,10]
[376844149,1754137838580,-291.33772185,0.00026849,10]
[376844150,1754137838589,-460.0,0.00026849,10]
[376844151,1754137838599,-460.0,0.00026849,10]
[376844152,1754137838608,-460.0,0.00026849,10]
[376844153,1754137838620,-460.0,0.00026849,10]
[376844154,1754137838629,-460.0,0.00026849,10]
[376844155,1754137838639,-460.0,0.00026849,10]
[376844156,1754137838648,-460.0,0.00026849,10]
[376844157,1754137838658,-460.0,0.00026849,10]
[376844158,1754137838667,-460.0,0.00026849,10]
[376844159,1754137838676,-460.0,0.00026849,10]
[376844160,1754137838686,-460.0,0.00026849,10]
[376844161,1754137838695,-460.0,0.00026849,10]
[376844162,1754137838704,-460.0,0.00026849,10]
[376844163,1754137838713,-460.0,0.00026849,10]
[376844164,1754137838722,-180.4192899,0.00026849,10]
[376844165,1754137838731,-460.0,0.00026849,10]
[376844166,1754137838740,-382.98716267,0.00026849,10]
[376844167,1754137838749,-460.0,0.00026849,10]
[376844168,1754137838758,-460.8225297,0.00026849,10]
[376844169,1754137838772,-460.0,0.00026849,10]
[376844170,1754137838781,-460.0,0.00026849,10]
[376844171,1754137838789,-460.0,0.00026849,10]
[376844172,1754137838799,-460.0,0.00026849,10]
[376844173,1754137838808,-460.0,0.00026849,10]
[376844174,1754137838818,-486.80050922,0.00026849,10]
[376844175,1754137838827,-460.0,0.00026849,10]
[376844176,1754137838836,-460.0,0.00026849,10]
[376844177,1754137838846,-460.0,0.00026849,10]
[376844178,1754137838855,-460.0,0.00026849,10]
[376844179,1754137838865,-460.0,0.00026849,10]
[376844180,1754137838875,-460.0,0.00026849,10]
[376844181,1754137838883,-460.0,0.00026849,10]
[376844182,1754137838893,-460.0,0.00026849,10]
[376844183,1754137838902,-460.0,0.00026849,10]
[376844184,1754137838911,-460.0,0.00026849,10]
[376844185,1754137838920,-460.0,0.00026849,10]
[376844186,1754137838929,-460.0,0.00026849,10]
[376844187,1754137838940,-460.0,0.00026849,10]
[376844188,1754137838949,-460.0,0.00026849,10]
[376844189,1754137838958,-460.0,0.00026849,10]
[376844190,1754137838968,-462.12802968,0.00026849,10]
[376844191,1754137838977,-460.0,0.00026849,10]
[376844192,1754137838986,-460.0,0.00026849,10]
[376844193,1754137838995,-460.0,0.00026849,10]
[376844194,1754137839004,-244.9121723,0.00026849,10]
[376844195,1754137839013,-460.0,0.00026849,10]
[376844196,1754137839022,-460.0,0.00026849,10]
[376844197,1754137839032,-500.0,0.00026849,10]
[376844198,1754137839040,-500.0,0.00026849,10]
[376844199,1754137839049,-500.0,0.00026849,10]
[376844200,1754137839058,-460.34237331,0.00026849,10]
[376844201,1754137839067,-504.52444624,0.00026849,10]
[376844202,1754137839076,-460.0,0.00026849,10]
[376844203,1754137839085,-460.0,0.00026849,10]
[376844204,1754137839094,-460.0,0.00026849,10]
[376844205,1754137839103,-460.0,0.00026849,10]
[376844206,1754137839112,-460.0,0.00026849,10]
[376844207,1754137839121,-460.0,0.00026849,10]
[376844208,1754137839132,-460.0,0.00026849,10]
[376844209,1754137839141,-460.0,0.00026849,10]
[376844210,1754137839151,-460.0,0.00026849,10]
[376844211,1754137839162,-460.0,0.00026849,10]
[376844212,1754137839171,-460.0,0.00026849,10]
[376844213,1754137839180,-460.0,0.00026849,10]
[376844214,1754137839190,-510.37044862,0.00026849,10]
[376844215,1754137839198,-460.69191773,0.00026849,10]
[376844216,1754137839208,-460.0,0.00026849,10]
[376844217,1754137839217,-460.0,0.00026849,10]
[376844218,1754137839226,-463.1120476,0.00026849,10]
[376844219,1754137839235,-460.0,0.00026849,10]
[376844220,1754137839244,-460.0,0.00026849,10]
[376844221,1754137839253,-460.0,0.00026849,10]
[376844222,1754137839262,-460.0,0.00026849,10]
[376844223,1754137839271,-460.0,0.00026849,10]
[376844224,1754137839280,-461.48892845,0.00026849,10]
[376844225,1754137839289,-460.0,0.00026849,10]
[376844226,1754137839299,-460.0,0.00026849,10]
[376844227,1754137839308,-460.0,0.00026849,10]
[376844228,1754137839317,-460.0,0.00026849,10]
[376844229,1754137839326,-460.0,0.00026849,10]
[376844230,1754137839335,-460.0,0.00026849,10]
[376844231,1754137839345,-460.0,0.00026849,10]
[376844232,1754137839354,-460.0,0.00026849,10]
[376844233,1754137839364,-460.0,0.00026849,10]
[376844234,1754137839374,-460.0,0.00026849,10]
[376844235,1754137839383,-460.0,0.00026849,10]
[376844236,1754137839393,-460.0,0.00026849,10]
[376844237,1754137839403,-461.28415682,0.00026849,10]
[376844238,1754137839412,-460.0,0.00026849,10]
[376844239,1754137839423,-460.0,0.00026849,10]
[376844240,1754137839432,-460.0,0.00026849,10]
[376844241,1754137839441,-460.0,0.00026849,10]
[376844242,1754137839450,-413.65264226,0.00026849,10]
[376844243,1754137839459,-460.0,0.00026849,10]
[376844244,1754137839469,-460.0,0.00026849,10]
[376844245,1754137839478,-460.0,0.00026849,10]
[376844246,1754137839487,-460.0,0.00026849,10]
[376844247,1754137839497,-460.0,0.00026849,10]
[376844248,1754137839506,-460.0,0.00026849,10]
[376844249,1754137839515,-460.0,0.00026849,10]
[376844250,1754137839526,-460.0,0.00026849,10]
[376844251,1754137839535,-460.0,0.00026849,10]
[376844252,1754137839544,-460.0,0.00026849,10]
[376844253,1754137839553,-460.0,0.00026849,10]
[376844254,1754137839563,-460.0,0.00026849,10]
[376844255,1754137839571,-460.0,0.00026849,10]
[376844256,1754137839663,-460.0,0.00026849,10]
[376844257,1754137839673,-460.0,0.00026849,10]
[376844258,1754137839683,-460.0,0.00026849,10]
[376844259,1754137839693,-460.0,0.00026849,10]
[376844260,1754137839703,-222.70298685,0.00026849,10]
[376844261,1754137839712,-460.0,0.00026849,10]